fUST/lending_fUST_20240701
["ID","MTS","AMOUNT","RATE_DAILY","PERIOD"]
[330787880,1719784247740,-500.0,0.00015567,2]
[330787881,1719784247749,-1252.68,0.00015567,2]
[330787882,1719784247758,-500.0,0.00015567,2]
[330787883,1719784247767,-552.36,0.00015567,2]
[330787884,1719784247777,-690.31,0.00015567,2]
[330787885,1719784247786,-500.0,0.00015567,2]
[330787886,1719784247795,-567.73,0.00015567,2]
[330787887,1719784247804,-500.0,0.00015567,2]
[330787888,1719784247814,-500.0,0.00015567,2]
[330787889,1719784247823,-500.0,0.00015567,2]
[330787890,1719784247832,-500.0,0.00015567,2]
[330787891,1719784247842,-500.0,0.00015567,2]
[330787892,1719784247852,-584.51,0.00015567,2]
[330787893,1719784247863,-593.58,0.00015567,2]
[330787894,1719784247872,-500.0,0.00015567,2]
[330787895,1719784247881,-500.0,0.00015567,2]
[330787896,1719784247890,-632.56,0.00015567,2]
[330787897,1719784247899,-500.0,0.00015567,2]
[330787898,1719784247908,-1211.04,0.00015567,2]
[330787899,1719784247917,-1900.85,0.00015567,2]
[330787900,1719784247926,-500.0,0.00015567,2]
[330787901,1719784247935,-566.89,0.00015567,2]
[330787902,1719784247945,-500.0,0.00015567,2]
[330787903,1719784247954,-691.55,0.00015567,2]
[330787904,1719784247963,-188.19,0.00015567,2]
[330787905,1719784247972,-618.39,0.00015567,2]
[330787906,1719784247982,-657.71,0.00015567,2]
[330787907,1719784247991,-1079.91,0.00015567,2]
[330787908,1719784248000,-500.0,0.00015567,2]
[330787909,1719784248015,-7732.46,0.00015567,2]
[330787910,1719784248024,-752.05,0.00015567,2]
[330787911,1719784248034,-1331.8,0.00015567,2]
[330787912,1719784248044,-729.6,0.00015567,2]
[330787913,1719784248054,-500.0,0.00015567,2]
[330787914,1719784248064,-500.0,0.00015567,2]
[330787915,1719784248073,-500.0,0.00015567,2]
[330787916,1719784248084,-500.0,0.00015567,2]
[330787917,1719784248094,-659.31,0.00015567,2]
[330787918,1719784248103,-939.01,0.00015567,2]
[330787919,1719784248113,-500.0,0.00015567,2]
[330787920,1719784248122,-1395.24,0.00015567,2]
[330787921,1719784248131,-207.81,0.00015567,2]
[330787922,1719784248140,-500.0,0.00015567,2]
[330787923,1719784248149,-1508.56,0.00015567,2]
[330787924,1719784248158,-500.0,0.00015567,2]
[330787925,1719784248168,-500.0,0.00015567,2]
[330787926,1719784248177,-500.0,0.00015567,2]
[330787927,1719784248187,-663.0,0.00015567,2]
[330787928,1719784248197,-500.0,0.00015567,2]
[330787929,1719784248208,-502.8,0.00015567,2]
[330787930,1719784248217,-731.78,0.00015567,2]
[330787931,1719784248227,-882.44,0.00015568,2]
[330787932,1719784248238,-500.0,0.00015568,2]
[330787933,1719784248248,-658.14,0.00015568,2]
[330787934,1719784248258,-500.0,0.00015568,2]
[330787935,1719784248268,-433.74,0.00015568,2]
[330787936,1719784248279,-500.0,0.00015569,2]
[330787937,1719784248288,-521.16828657,0.00015569,2]
[330787938,1719784248300,-500.0,0.00015569,2]
[330787939,1719784248311,-500.0,0.00015569,2]
[330787940,1719784248321,-500.0,0.00015569,2]
[330787941,1719784248330,-500.0,0.00015569,2]
[330787942,1719784248339,-500.0,0.00015569,2]
[330787943,1719784248347,-500.0,0.00015569,2]
[330787944,1719784248357,-500.0,0.00015569,2]
[330787945,1719784248368,-1035.48,0.00015569,2]
[330787946,1719784248378,-500.0,0.00015569,2]
[330787947,1719784248387,-500.0,0.00015569,2]
[330787948,1719784248397,-504.59801319,0.00015569,2]
[330787949,1719784248407,-500.0,0.00015569,2]
[330787950,1719784248416,-500.0,0.00015569,2]
[330787951,1719784248426,-500.0,0.00015569,2]
[330787952,1719784248435,-501.58,0.00015569,2]
[330787953,1719784248446,-500.0,0.00015569,2]
[330787954,1719784248457,-500.0,0.00015569,2]
[330787955,1719784248466,-500.0,0.00015569,2]
[330787956,1719784248475,-384.64325468,0.00015569,2]
[330787957,1719784248486,-542.50733357,0.00015569,2]
[330787958,1719784248497,-500.0,0.00015569,2]
[330787959,1719784248507,-500.0,0.00015569,2]
[330787960,1719784248517,-500.0,0.00015569,2]
[330787961,1719784248527,-500.0,0.00015569,2]
[330787962,1719784248537,-500.0,0.00015569,2]
[330787963,1719784248548,-500.0,0.00015569,2]
[330787964,1719784248559,-500.0,0.00015569,2]
[330787965,1719784248568,-500.0,0.00015569,2]
[330787966,1719784248577,-426.86121679,0.00015569,2]
[330787967,1719784248586,-500.0,0.00015569,2]
[330787968,1719784248596,-716.81,0.00015569,2]
[330787969,1719784248606,-500.0,0.00015569,2]
[330787970,1719784248616,-500.0,0.00015569,2]
[330787971,1719784248627,-500.0,0.00015569,2]
[330787972,1719784248638,-500.0,0.00015569,2]
[330787973,1719784248647,-614.12,0.00015569,2]
[330787974,1719784248657,-500.0,0.00015569,2]
[330787975,1719784248667,-500.0,0.00015569,2]
[330787976,1719784248677,-335.02,0.00015569,2]
[330787977,1719784248687,-500.0,0.00015569,2]
[330787978,1719784248696,-513.53,0.00015569,2]
[330787979,1719784248705,-500.0,0.00015569,2]
[330787980,1719784248714,-500.0,0.00015569,2]
[330787981,1719784248723,-500.0,0.00015569,2]
[330787982,1719784248733,-500.0,0.00015569,2]
[330787983,1719784248742,-1343.1,0.00015569,2]
[330787984,1719784248751,-500.0,0.00015569,2]
[330787985,1719784248760,-500.0,0.00015569,2]
[330787986,1719784248769,-701.74,0.00015569,2]
[330787987,1719784248779,-500.0,0.00015569,2]
[330787988,1719784248787,-500.0,0.00015569,2]
[330787989,1719784248797,-500.0,0.00015569,2]
[330787990,1719784248806,-500.0,0.00015569,2]
[330787991,1719784248815,-500.0,0.00015569,2]
[330787992,1719784248825,-500.0,0.00015569,2]
[330787993,1719784248834,-500.0,0.00015569,2]
[330787994,1719784248843,-523.92,0.00015569,2]
[330787995,1719784248852,-500.0,0.00015569,2]
[330787996,1719784248861,-955.63,0.00015569,2]
[330787997,1719784248870,-500.0,0.00015569,2]
[330787998,1719784248879,-500.0,0.00015569,2]
[330787999,1719784248888,-1107.04,0.00015569,2]
[330788000,1719784248897,-500.0,0.00015569,2]
[330788001,1719784248906,-500.0,0.00015569,2]
[330788002,1719784248914,-500.0,0.00015569,2]
[330788003,1719784248923,-500.0,0.00015569,2]
[330788004,1719784248932,-500.0,0.00015569,2]
[330788005,1719784248941,-500.0,0.00015569,2]
[330788006,1719784248950,-625.67,0.00015569,2]
[330788007,1719784248960,-500.0,0.00015569,2]
[330788008,1719784248969,-500.0,0.00015569,2]
[330788009,1719784248979,-769.97,0.00015569,2]
[330788010,1719784248988,-597.71,0.00015569,2]
[330788011,1719784248998,-500.0,0.00015569,2]
[330788012,1719784249008,-500.0,0.00015569,2]
[330788013,1719784249020,-503.43450355,0.00015569,2]
[330788014,1719784249029,-635.35,0.00015569,2]
[330788015,1719784249039,-500.0,0.00015569,2]
[330788016,1719784249048,-985.85,0.00015569,2]
[330788017,1719784249058,-500.0,0.00015569,2]
[330788018,1719784249067,-500.0,0.00015569,2]
[330788019,1719784249076,-197.65376998,0.00015569,2]
[330788020,1719784266852,157.2682199,0.00014999,2]
[330788021,1719784286225,413.87220254,0.00014999,2]
[330788023,1719784377972,1091.08922655,0.00014999,2]
[330788024,1719784392399,150.0,0.000166,30]
[330788028,1719784455017,500.0,0.00014999,2]
[330788029,1719784560961,1312.69310797,0.00014999,2]
[330788030,1719784573871,176.01438321,0.00014917,2]
[330788032,1719784602002,440.38203034,0.00014999,2]
[330788033,1719784622443,1198.8828249,0.00014328,2]
[330788034,1719784623136,661.30955175,0.00014999,2]
[330788035,1719784650697,1569.62433294,0.00014999,2]
[330788038,1719784717410,1956.46057478,0.00014999,2]
[330788041,1719784758675,491.33508365,0.00014999,2]
[330788042,1719784769575,806.60844184,0.00014999,2]
[330788043,1719784804223,445.25676339,0.00014999,2]
[330788045,1719784853061,154.01258537,0.00014916,2]
[330788049,1719785011456,1226.81656383,0.00014999,2]
[330788051,1719785062278,10000.0,0.00025,120]
[330788052,1719785089791,374.10478077,0.00014999,2]
[330788053,1719785138611,154.0125853,0.00014916,2]
[330788057,1719785265838,373.81482657,0.00014999,2]
[330788060,1719785305534,-300.0,0.00015014,2]
[330788061,1719785305565,-300.0,0.00015014,2]
[330788062,1719785305596,-104.31921208,0.00015015,2]
[330788063,1719785305632,-395.68078792,0.00015015,2]
[330788064,1719785305664,-215.69643538,0.00015015,2]
[330788065,1719785330464,-730.63314079,0.00015015,2]
[330788066,1719785330508,-276.69042383,0.00015015,2]
[330788067,1719785330538,-453.94271696,0.00015015,2]
[330788068,1719785330572,-46.05728304,0.00015015,2]
[330788069,1719785330603,-150.46873406,0.00015015,2]
[330788070,1719785355428,-300.0,0.00015014,2]
[330788071,1719785355460,-463.78898676,0.00015015,2]
[330788072,1719785355501,-763.78898676,0.00015015,2]
[330788081,1719785380494,-794.34054623,0.00015015,2]
[330788082,1719785380706,-241.48278782,0.00015015,2]
[330788083,1719785405711,-300.0,0.00015014,2]
[330788084,1719785405743,-300.0,0.00015014,2]
[330788085,1719785405776,-215.05701291,0.00015015,2]
[330788086,1719785405816,-568.84069046,0.00015015,2]
[330788087,1719785408858,154.0125853,0.00014915,2]
[330788214,1719785437926,-500.0,0.00015015,2]
[330788215,1719785437935,-500.0,0.00015015,2]
[330788216,1719785437945,-527.0296319,0.00015015,2]
[330788223,1719785440406,-2435.6203681,0.00015015,2]
[330788224,1719785440419,-2904.95,0.00015015,2]
[330788225,1719785440429,-1435.26,0.00015015,2]
[330788226,1719785440439,-500.0,0.00015015,2]
[330788227,1719785440448,-500.0,0.00015015,2]
[330788228,1719785440458,-1308.05,0.00015015,2]
[330788229,1719785440468,-1450.78,0.00015015,2]
[330788230,1719785440478,-896.05,0.00015015,2]
[330788231,1719785440488,-5307.24,0.00015015,2]
[330788232,1719785440497,-500.0,0.00015015,2]
[330788233,1719785440506,-1172.06,0.00015015,2]
[330788234,1719785440515,-500.0,0.00015015,2]
[330788235,1719785440524,-500.0,0.00015015,2]
[330788236,1719785440534,-500.0,0.00015015,2]
[330788237,1719785440543,-556.95,0.00015015,2]
[330788238,1719785440552,-11026.19,0.00015015,2]
[330788239,1719785440562,-1615.17,0.00015015,2]
[330788240,1719785440571,-628.93,0.00015015,2]
[330788241,1719785440580,-500.0,0.00015015,2]
[330788242,1719785440590,-3098.07,0.00015015,2]
[330788243,1719785440599,-500.0,0.00015015,2]
[330788244,1719785440609,-677.21,0.00015015,2]
[330788245,1719785440618,-500.0,0.00015015,2]
[330788246,1719785440627,-1837.11,0.00015015,2]
[330788247,1719785440636,-500.0,0.00015015,2]
[330788248,1719785440645,-958.07,0.00015015,2]
[330788249,1719785440655,-8105.83,0.00015015,2]
[330788250,1719785440664,-500.0,0.00015015,2]
[330788251,1719785440673,-1219.0,0.00015015,2]
[330788252,1719785440683,-500.0,0.00015016,2]
[330788253,1719785440692,-500.0,0.00015016,2]
[330788254,1719785440702,-500.0,0.00015016,2]
[330788255,1719785440712,-500.0,0.00015016,2]
[330788256,1719785440722,-500.0,0.00015016,2]
[330788257,1719785440731,-289.91314799,0.00015016,2]
[330788258,1719785440741,-500.0,0.00015016,2]
[330788259,1719785440751,-595.32416715,0.00015016,2]
[330788260,1719785440760,-500.0,0.00015016,2]
[330788261,1719785440771,-500.0,0.00015016,2]
[330788262,1719785440781,-500.0,0.00015016,2]
[330788263,1719785440790,-500.0,0.00015016,2]
[330788264,1719785440800,-500.0,0.00015016,2]
[330788265,1719785440810,-322.00160382,0.00015016,2]
[330788266,1719785440820,-500.0,0.00015016,2]
[330788267,1719785440830,-500.0,0.00015016,2]
[330788268,1719785440839,-1505.11,0.00015016,2]
[330788269,1719785440848,-500.0,0.00015016,2]
[330788270,1719785440859,-500.0,0.00015016,2]
[330788271,1719785440870,-545.02733015,0.00015016,2]
[330788272,1719785440880,-500.0,0.00015016,2]
[330788273,1719785440889,-500.0,0.00015016,2]
[330788274,1719785440898,-500.0,0.00015016,2]
[330788275,1719785440908,-500.0,0.00015016,2]
[330788276,1719785440918,-562.15,0.00015016,2]
[330788277,1719785440929,-500.0,0.00015016,2]
[330788278,1719785440939,-500.0,0.00015016,2]
[330788279,1719785440948,-614.28635685,0.00015016,2]
[330788280,1719785441076,-500.0,0.00015016,2]
[330788281,1719785441086,-500.0,0.00015016,2]
[330788282,1719785441095,-500.0,0.00015016,2]
[330788283,1719785441104,-500.0,0.00015016,2]
[330788284,1719785441113,-500.0,0.00015016,2]
[330788285,1719785441123,-500.0,0.00015016,2]
[330788286,1719785441132,-500.0,0.00015016,2]
[330788287,1719785441141,-500.0,0.00015016,2]
[330788288,1719785441150,-500.0,0.00015016,2]
[330788289,1719785441160,-1392.32,0.00015016,2]
[330788290,1719785441170,-500.0,0.00015016,2]
[330788291,1719785441181,-1927.73,0.00015016,2]
[330788292,1719785441190,-500.0,0.00015016,2]
[330788293,1719785441200,-517.57,0.00015016,2]
[330788294,1719785441210,-500.0,0.00015016,2]
[330788295,1719785441220,-500.0,0.00015016,2]
[330788296,1719785441229,-500.0,0.00015016,2]
[330788297,1719785441239,-500.0,0.00015016,2]
[330788298,1719785441249,-500.0,0.00015016,2]
[330788299,1719785441259,-500.0,0.00015016,2]
[330788300,1719785441268,-226.59987774,0.00015016,2]
[330788301,1719785441277,-496.72665661,0.00015016,2]
[330788302,1719785441287,-500.0,0.00015016,2]
[330788303,1719785441296,-572.18323163,0.00015016,2]
[330788304,1719785441305,-500.0,0.00015016,2]
[330788305,1719785441314,-622.19,0.00015016,2]
[330788306,1719785441325,-500.0,0.00015016,2]
[330788307,1719785441334,-500.0,0.00015016,2]
[330788308,1719785441346,-500.0,0.00015016,2]
[330788309,1719785441355,-1104.3,0.00015016,2]
[330788310,1719785441364,-500.0,0.00015016,2]
[330788311,1719785441373,-500.0,0.00015016,2]
[330788312,1719785441383,-500.0,0.00015016,2]
[330788313,1719785441392,-500.0,0.00015016,2]
[330788314,1719785441401,-1148.29,0.00015016,2]
[330788315,1719785441410,-500.0,0.00015016,2]
[330788316,1719785441419,-632.1,0.00015016,2]
[330788317,1719785441431,-500.0,0.00015016,2]
[330788318,1719785441441,-505.31255802,0.00015016,2]
[330788319,1719785441450,-427.37,0.00015016,2]
[330788320,1719785441460,-500.0,0.00015016,2]
[330788321,1719785441470,-506.33,0.00015016,2]
[330788322,1719785441479,-500.0,0.00015016,2]
[330788323,1719785441488,-500.0,0.00015016,2]
[330788324,1719785441498,-500.0,0.00015016,2]
[330788325,1719785441508,-500.0,0.00015016,2]
[330788326,1719785441518,-458.22800551,0.00015016,2]
[330788327,1719785441529,-500.0,0.00015016,2]
[330788328,1719785441538,-632.78,0.00015016,2]
[330788329,1719785441548,-500.0,0.00015016,2]
[330788330,1719785441557,-500.0,0.00015016,2]
[330788331,1719785441567,-500.0,0.00015016,2]
[330788332,1719785441577,-500.0,0.00015016,2]
[330788333,1719785441586,-520.42,0.00015016,2]
[330788334,1719785441597,-500.0,0.00015016,2]
[330788335,1719785441607,-502.96161844,0.00015016,2]
[330788336,1719785441617,-500.0,0.00015016,2]
[330788337,1719785441628,-500.0,0.00015016,2]
[330788338,1719785441638,-500.0,0.00015016,2]
[330788339,1719785441649,-500.0,0.00015016,2]
[330788340,1719785441659,-500.0,0.00015016,2]
[330788341,1719785441668,-500.0,0.00015016,2]
[330788342,1719785441677,-500.0,0.00015016,2]
[330788343,1719785441686,-500.0,0.00015016,2]
[330788344,1719785441695,-500.0,0.00015016,2]
[330788345,1719785441707,-500.0,0.00015016,2]
[330788346,1719785441716,-500.0,0.00015016,2]
[330788347,1719785441726,-580.53,0.00015016,2]
[330788348,1719785441736,-500.0,0.00015016,2]
[330788349,1719785441746,-500.0,0.00015016,2]
[330788350,1719785441755,-500.0,0.00015016,2]
[330788351,1719785441765,-500.0,0.00015016,2]
[330788352,1719785441776,-500.0,0.00015016,2]
[330788353,1719785441785,-500.0,0.00015016,2]
[330788354,1719785441795,-500.0,0.00015016,2]
[330788355,1719785441806,-500.0,0.00015016,2]
[330788356,1719785441816,-500.0,0.00015016,2]
[330788357,1719785441827,-500.71,0.00015016,2]
[330788358,1719785441837,-500.0,0.00015016,2]
[330788359,1719785441846,-500.0,0.00015016,2]
[330788360,1719785441855,-579.85,0.00015016,2]
[330788361,1719785441864,-500.0,0.00015016,2]
[330788362,1719785441873,-500.0,0.00015016,2]
[330788363,1719785441883,-500.0,0.00015016,2]
[330788364,1719785441893,-500.0,0.00015016,2]
[330788365,1719785441902,-500.0,0.00015016,2]
[330788366,1719785441913,-500.0,0.00015016,2]
[330788367,1719785441922,-500.0,0.00015016,2]
[330788368,1719785441931,-11164.68,0.00015016,2]
[330788369,1719785441941,-998.17,0.00015016,2]
[330788370,1719785441951,-500.0,0.00015016,2]
[330788371,1719785441960,-500.0,0.00015016,2]
[330788372,1719785441970,-500.0,0.00015016,2]
[330788373,1719785441979,-500.0,0.00015016,2]
[330788374,1719785441988,-1148.17,0.00015016,2]
[330788375,1719785441998,-423.48112156,0.00015016,2]
[330788376,1719785442007,-500.0,0.00015016,2]
[330788377,1719785442017,-500.0,0.00015016,2]
[330788378,1719785442027,-500.0,0.00015016,2]
[330788379,1719785442038,-500.0,0.00015016,2]
[330788380,1719785442047,-564.24,0.00015016,2]
[330788381,1719785442056,-500.0,0.00015016,2]
[330788382,1719785442066,-500.0,0.00015016,2]
[330788383,1719785442076,-500.0,0.00015016,2]
[330788384,1719785442085,-500.0,0.00015016,2]
[330788385,1719785442094,-500.0,0.00015016,2]
[330788386,1719785442103,-2554.54,0.00015016,2]
[330788387,1719785442112,-692.44,0.00015016,2]
[330788388,1719785442121,-512.81,0.00015016,2]
[330788389,1719785442130,-500.0,0.00015016,2]
[330788390,1719785442140,-500.0,0.00015016,2]
[330788391,1719785442149,-500.0,0.00015016,2]
[330788392,1719785442158,-500.0,0.00015016,2]
[330788393,1719785442167,-500.0,0.00015016,2]
[330788394,1719785442176,-612.76,0.00015016,2]
[330788395,1719785442185,-500.0,0.00015016,2]
[330788396,1719785442194,-500.0,0.00015016,2]
[330788397,1719785442203,-500.0,0.00015016,2]
[330788398,1719785442213,-1010.75,0.00015016,2]
[330788399,1719785442223,-504.65,0.00015016,2]
[330788400,1719785442232,-500.0,0.00015016,2]
[330788401,1719785442242,-500.0,0.00015016,2]
[330788402,1719785442251,-710.21,0.00015016,2]
[330788403,1719785442261,-500.0,0.00015016,2]
[330788404,1719785442271,-500.0,0.00015016,2]
[330788405,1719785442280,-1266.0,0.00015016,2]
[330788406,1719785442289,-703.81,0.00015016,2]
[330788407,1719785442299,-500.0,0.00015016,2]
[330788408,1719785442308,-500.0,0.00015016,2]
[330788409,1719785442317,-500.0,0.00015016,2]
[330788410,1719785442326,-468.45938749,0.00015016,2]
[330788411,1719785442345,-31.54061251,0.00015016,2]
[330788412,1719785442355,-500.0,0.00015016,2]
[330788413,1719785442364,-500.0,0.00015016,2]
[330788414,1719785442373,-500.0,0.00015016,2]
[330788415,1719785442383,-500.0,0.00015016,2]
[330788416,1719785442392,-5061.97,0.00015016,2]
[330788417,1719785442401,-500.0,0.00015016,2]
[330788418,1719785442411,-500.0,0.00015016,2]
[330788419,1719785442421,-193.59896589,0.00015016,2]
[330788420,1719785442431,-500.0,0.00015016,2]
[330788421,1719785442440,-500.0,0.00015016,2]
[330788422,1719785442449,-500.0,0.00015016,2]
[330788423,1719785442459,-500.0,0.00015016,2]
[330788425,1719785442467,-500.0,0.00015016,2]
[330788427,1719785442478,-500.0,0.00015016,2]
[330788428,1719785442487,-500.0,0.00015016,2]
[330788430,1719785442496,-500.0,0.00015016,2]
[330788432,1719785442507,-500.0,0.00015016,2]
[330788433,1719785442516,-1742.45,0.00015016,2]
[330788434,1719785442525,-500.85030388,0.00015016,2]
[330788435,1719785442535,-1320.98,0.00015016,2]
[330788436,1719785442544,-500.0,0.00015016,2]
[330788437,1719785442554,-500.0,0.00015016,2]
[330788438,1719785442563,-234.29991254,0.00015016,2]
[330788439,1719785442573,-500.0,0.00015016,2]
[330788440,1719785442582,-500.0,0.00015016,2]
[330788441,1719785442592,-500.0,0.00015016,2]
[330788442,1719785442601,-500.0,0.00015016,2]
[330788443,1719785442611,-500.0,0.00015016,2]
[330788444,1719785442620,-500.0,0.00015016,2]
[330788445,1719785442629,-500.0,0.00015016,2]
[330788447,1719785442638,-500.97165346,0.00015016,2]
[330788449,1719785442648,-500.0,0.00015016,2]
[330788451,1719785442658,-500.0,0.00015016,2]
[330788453,1719785442668,-500.0,0.00015016,2]
[330788455,1719785442678,-500.0,0.00015016,2]
[330788457,1719785442687,-500.0,0.00015016,2]
[330788458,1719785442697,-500.0,0.00015016,2]
[330788459,1719785442706,-500.0,0.00015016,2]
[330788460,1719785442715,-500.0,0.00015016,2]
[330788461,1719785442726,-500.0,0.00015016,2]
[330788462,1719785442735,-500.0,0.00015016,2]
[330788463,1719785442745,-500.0,0.00015016,2]
[330788464,1719785442755,-500.0,0.00015016,2]
[330788465,1719785442765,-602.9,0.00015016,2]
[330788466,1719785442775,-500.0,0.00015016,2]
[330788467,1719785442784,-500.0,0.00015016,2]
[330788468,1719785442793,-500.0,0.00015016,2]
[330788469,1719785442803,-500.0,0.00015016,2]
[330788470,1719785442812,-500.0,0.00015016,2]
[330788471,1719785442821,-500.0,0.00015016,2]
[330788472,1719785442831,-500.0,0.00015016,2]
[330788473,1719785442840,-500.0,0.00015016,2]
[330788474,1719785442849,-607.75,0.00015016,2]
[330788475,1719785442859,-548.13,0.00015016,2]
[330788476,1719785442869,-500.0,0.00015016,2]
[330788478,1719785442878,-500.0,0.00015016,2]
[330788479,1719785442887,-500.0,0.00015016,2]
[330788480,1719785442897,-670.8,0.00015016,2]
[330788481,1719785442906,-500.0,0.00015016,2]
[330788482,1719785442915,-500.0,0.00015016,2]
[330788483,1719785442925,-500.0,0.00015016,2]
[330788484,1719785442934,-500.0,0.00015016,2]
[330788485,1719785442943,-500.0,0.00015016,2]
[330788486,1719785442953,-500.0,0.00015016,2]
[330788487,1719785442962,-500.0,0.00015016,2]
[330788490,1719785442971,-500.0,0.00015016,2]
[330788492,1719785442980,-500.0,0.00015016,2]
[330788494,1719785442990,-712.07,0.00015016,2]
[330788495,1719785442999,-3465.63328497,0.00015017,2]
[330788496,1719785443285,-15659.26873092,0.00015017,2]
[330788497,1719785443295,-500.0,0.00015017,2]
[330788498,1719785443305,-500.0,0.00015017,2]
[330788500,1719785443315,-500.0,0.00015017,2]
[330788502,1719785443324,-500.0,0.00015017,2]
[330788503,1719785443334,-500.0,0.00015017,2]
[330788504,1719785443349,-500.0,0.00015017,2]
[330788505,1719785443359,-1287.14,0.00015017,2]
[330788506,1719785443369,-501.35787624,0.00015017,2]
[330788507,1719785443380,-500.0,0.00015017,2]
[330788508,1719785443390,-500.0,0.00015017,2]
[330788509,1719785443399,-500.0,0.00015017,2]
[330788510,1719785443409,-500.0,0.00015017,2]
[330788511,1719785443421,-500.0,0.00015017,2]
[330788512,1719785443431,-500.0,0.00015017,2]
[330788513,1719785443440,-502.09,0.00015017,2]
[330788514,1719785443450,-500.0,0.00015017,2]
[330788515,1719785443460,-955.55,0.00015017,2]
[330788516,1719785443470,-255.4048986,0.00015017,2]
[330788517,1719785443479,-500.0,0.00015017,2]
[330788518,1719785443489,-500.0,0.00015017,2]
[330788519,1719785443499,-1081.75,0.00015017,2]
[330788520,1719785443509,-500.0,0.00015017,2]
[330788521,1719785443518,-500.0,0.00015017,2]
[330788522,1719785443527,-500.0,0.00015017,2]
[330788523,1719785443538,-500.0,0.00015017,2]
[330788524,1719785443548,-662.21,0.00015017,2]
[330788525,1719785443558,-500.0,0.00015017,2]
[330788526,1719785443568,-500.0,0.00015017,2]
[330788527,1719785443577,-773.69,0.00015017,2]
[330788528,1719785443587,-500.0,0.00015017,2]
[330788529,1719785443596,-608.88,0.00015017,2]
[330788530,1719785443606,-944.77,0.00015017,2]
[330788531,1719785443615,-622.60315448,0.00015017,2]
[330788532,1719785443624,-500.0,0.00015017,2]
[330788533,1719785443634,-500.0,0.00015017,2]
[330788534,1719785443643,-501.50250761,0.00015017,2]
[330788535,1719785443653,-500.0,0.00015017,2]
[330788536,1719785443662,-504.20451429,0.00015017,2]
[330788537,1719785443671,-500.0,0.00015017,2]
[330788538,1719785443681,-500.0,0.00015017,2]
[330788539,1719785443690,-500.0,0.00015017,2]
[330788540,1719785443700,-500.0,0.00015017,2]
[330788541,1719785443709,-500.0,0.00015017,2]
[330788542,1719785443719,-262.33,0.00015017,2]
[330788543,1719785443731,-860.76,0.00015018,2]
[330788544,1719785443740,-280.07980987,0.00015018,2]
[330788545,1719785443752,-500.0,0.00015018,2]
[330788546,1719785443761,-500.0,0.00015018,2]
[330788547,1719785443772,-500.0,0.00015018,2]
[330788548,1719785443781,-496.71962602,0.00015018,2]
[330788549,1719785443791,-500.0,0.00015018,2]
[330788550,1719785443800,-500.0,0.00015018,2]
[330788551,1719785443811,-500.0,0.00015018,2]
[330788552,1719785443820,-500.0,0.00015018,2]
[330788553,1719785443831,-500.0,0.00015018,2]
[330788554,1719785443840,-500.0,0.00015018,2]
[330788555,1719785443851,-598.08,0.00015018,2]